[Event "Early-Titled-Tuesday-Blitz-September-12-2023"]
[Site "Chess.com"]
[Date "2023.09.12"]
[Round "5"]
[White "Diaschess88"]
[Black "MrTattaglia"]
[Result "0-1"]
[WhiteElo "2647"]
[BlackElo "2916"]
[TimeControl "180+1"]
[EndTime "8:55:51 PDT"]
[Termination "MrTattaglia won on time"]

1. e4 {[%clk 0:03:00.9]} 1... c5 {[%clk 0:02:52.4]} 2. Nf3 {[%clk 0:03:00.8]}
2... g6 {[%clk 0:02:49.3]} 3. d4 {[%clk 0:03:01]} 3... Bg7 {[%clk 0:02:49.4]} 4.
dxc5 {[%clk 0:02:59.3]} 4... Nf6 {[%clk 0:02:48.5]} 5. Nc3 {[%clk 0:02:59.4]}
5... Qa5 {[%clk 0:02:47]} 6. Bd3 {[%clk 0:02:54.9]} 6... Nc6 {[%clk 0:02:43.5]}
7. Be3 {[%clk 0:02:44.8]} 7... Ng4 {[%clk 0:02:34.5]} 8. Bd2 {[%clk 0:02:44.8]}
8... Qxc5 {[%clk 0:02:34.5]} 9. Qe2 {[%clk 0:02:43.7]} 9... O-O {[%clk 0:02:28]}
10. O-O {[%clk 0:02:35.6]} 10... Qd6 {[%clk 0:02:25.1]} 11. h3 {[%clk
0:02:31.7]} 11... Nd4 {[%clk 0:02:24.6]} 12. hxg4 {[%clk 0:02:22.5]} 12... Nxe2+
{[%clk 0:02:24.6]} 13. Nxe2 {[%clk 0:02:23.4]} 13... Bxb2 {[%clk 0:02:21.8]} 14.
Rab1 {[%clk 0:02:22.5]} 14... Bg7 {[%clk 0:02:21.6]} 15. Bb4 {[%clk 0:02:22.3]}
15... Qe6 {[%clk 0:02:17.2]} 16. Nf4 {[%clk 0:02:22.3]} 16... Qxg4 {[%clk
0:02:16.6]} 17. Nd5 {[%clk 0:02:22.6]} 17... e6 {[%clk 0:02:11.9]} 18. Nc7
{[%clk 0:02:19.8]} 18... Rb8 {[%clk 0:02:11]} 19. Bxf8 {[%clk 0:02:20]} 19...
Bxf8 {[%clk 0:02:06.7]} 20. Na6 {[%clk 0:02:20.3]} 20... Ra8 {[%clk 0:02:04]}
21. Nc7 {[%clk 0:02:19.6]} 21... Rb8 {[%clk 0:02:04.6]} 22. Na6 {[%clk
0:02:19.6]} 22... Bd6 {[%clk 0:02:05.1]} 23. Nxb8 {[%clk 0:02:17.3]} 23... Bxb8
{[%clk 0:02:06]} 24. a4 {[%clk 0:01:55.3]} 24... Qf4 {[%clk 0:02:02.4]} 25. Rfe1
{[%clk 0:01:49.3]} 25... g5 {[%clk 0:01:48.2]} 26. e5 {[%clk 0:01:43.7]} 26...
f5 {[%clk 0:01:34.4]} 27. c3 {[%clk 0:01:21]} 27... g4 {[%clk 0:01:32.2]} 28.
Rb4 {[%clk 0:01:20.1]} 28... Qh6 {[%clk 0:01:22.1]} 29. Rc4 {[%clk 0:01:20.3]}
29... Qf8 {[%clk 0:00:58.7]} 30. Nd4 {[%clk 0:01:09.6]} 30... b6 {[%clk
0:00:52.2]} 31. Nb5 {[%clk 0:00:49.6]} 31... Bb7 {[%clk 0:00:51.9]} 32. Rd4
{[%clk 0:00:49.6]} 32... Bc6 {[%clk 0:00:50.8]} 33. Nd6 {[%clk 0:00:46.6]} 33...
Bxd6 {[%clk 0:00:48.4]} 34. Rxd6 {[%clk 0:00:45.7]} 34... Bxa4 {[%clk
0:00:40.2]} 35. Ra1 {[%clk 0:00:44.6]} 35... Bc6 {[%clk 0:00:40.8]} 36. Rxa7
{[%clk 0:00:42]} 36... Qh6 {[%clk 0:00:41.4]} 37. Ra1 {[%clk 0:00:08.5]} 37...
g3 {[%clk 0:00:38]} 38. fxg3 {[%clk 0:00:08.2]} 38... Qe3+ {[%clk 0:00:37.4]}
39. Kh2 {[%clk 0:00:08.7]} 39... Qxe5 {[%clk 0:00:36.8]} 40. Rd4 {[%clk
0:00:08.4]} 40... h5 {[%clk 0:00:33.4]} 41. Rf1 {[%clk 0:00:08.1]} 41... Qc5
{[%clk 0:00:31.9]} 42. Rc4 {[%clk 0:00:07.1]} 42... Qe3 {[%clk 0:00:31.8]} 43.
Rd4 {[%clk 0:00:06.4]} 43... Kg7 {[%clk 0:00:26.1]} 44. Rg1 {[%clk 0:00:03.8]}
44... Kf6 {[%clk 0:00:13.9]} 45. Rf1 {[%clk 0:00:04]} 45... Ke7 {[%clk
0:00:13.8]} 46. Bb1 {[%clk 0:00:02.7]} 46... Qxc3 {[%clk 0:00:13.1]} 47. Rh4
{[%clk 0:00:03]} 47... Qh8 {[%clk 0:00:12]} 48. Bc2 {[%clk 0:00:02.3]} 48... b5
{[%clk 0:00:12.1]} 49. Bd1 {[%clk 0:00:03]} 49... Qg7 {[%clk 0:00:12.2]} 50.
Bxh5 {[%clk 0:00:03.1]} 50... Qb2 {[%clk 0:00:08.8]} 51. Bf3 {[%clk 0:00:01.9]}
51... Bxf3 {[%clk 0:00:08.9]} 52. Rxf3 {[%clk 0:00:02.8]} 52... b4 {[%clk
0:00:09.6]} 0-1

[Event "Early-Titled-Tuesday-Blitz-September-12-2023"]
[Site "Chess.com"]
[Date "2023.09.12"]
[Round "5"]
[White "DumbKing75"]
[Black "tptagain"]
[Result "1/2-1/2"]
[WhiteElo "2669"]
[BlackElo "2923"]
[TimeControl "180+1"]
[EndTime "8:55:54 PDT"]
[Termination "Game drawn by repetition"]

1. e4 {[%clk 0:03:00.9]} 1... c6 {[%clk 0:03:00.1]} 2. d4 {[%clk 0:03:00.7]}
2... d5 {[%clk 0:03:00.7]} 3. e5 {[%clk 0:03:00]} 3... Bf5 {[%clk 0:02:59.8]} 4.
Nf3 {[%clk 0:03:00.5]} 4... e6 {[%clk 0:02:59.6]} 5. Be2 {[%clk 0:03:00.8]} 5...
Nd7 {[%clk 0:02:58.3]} 6. O-O {[%clk 0:03:00.8]} 6... Ne7 {[%clk 0:02:58.9]} 7.
Nbd2 {[%clk 0:03:01]} 7... Nc8 {[%clk 0:02:58.6]} 8. Nb3 {[%clk 0:02:58.6]} 8...
a5 {[%clk 0:02:56.5]} 9. a4 {[%clk 0:02:54.3]} 9... Be7 {[%clk 0:02:56.9]} 10.
Bd2 {[%clk 0:02:40.6]} 10... O-O {[%clk 0:02:56.7]} 11. Rc1 {[%clk 0:02:37.8]}
11... Bb4 {[%clk 0:02:56.8]} 12. c3 {[%clk 0:02:32]} 12... Be7 {[%clk
0:02:56.9]} 13. c4 {[%clk 0:02:22.5]} 13... dxc4 {[%clk 0:02:55.2]} 14. Bxc4
{[%clk 0:02:20.6]} 14... Ncb6 {[%clk 0:02:50.7]} 15. Nxa5 {[%clk 0:01:58]} 15...
Qb8 {[%clk 0:02:07.3]} 16. Be2 {[%clk 0:01:44]} 16... Rd8 {[%clk 0:02:00]} 17.
Qb3 {[%clk 0:01:34.1]} 17... Be4 {[%clk 0:01:55.9]} 18. Rfd1 {[%clk 0:01:24.7]}
18... Bd5 {[%clk 0:01:45]} 19. Qc2 {[%clk 0:01:25]} 19... c5 {[%clk 0:01:31.3]}
20. Bg5 {[%clk 0:00:27.6]} 20... Bxg5 {[%clk 0:01:01.5]} 21. Nxg5 {[%clk
0:00:28.5]} 21... g6 {[%clk 0:01:02.2]} 22. dxc5 {[%clk 0:00:27.2]} 22... Rxa5
{[%clk 0:00:20.8]} 23. cxb6 {[%clk 0:00:27]} 23... Nxb6 {[%clk 0:00:14.6]} 24.
Qc7 {[%clk 0:00:17.6]} 24... Qxc7 {[%clk 0:00:15]} 25. Rxc7 {[%clk 0:00:18.5]}
25... Rd7 {[%clk 0:00:15.7]} 26. Rxd7 {[%clk 0:00:15.4]} 26... Nxd7 {[%clk
0:00:16.6]} 27. Bb5 {[%clk 0:00:13.9]} 27... Nxe5 {[%clk 0:00:15.3]} 28. b4
{[%clk 0:00:12.2]} 28... Ra8 {[%clk 0:00:15]} 29. f3 {[%clk 0:00:11.3]} 29... h6
{[%clk 0:00:10.3]} 30. Ne4 {[%clk 0:00:11.4]} 30... Kf8 {[%clk 0:00:08.1]} 31.
Nf6 {[%clk 0:00:10]} 31... Bc6 {[%clk 0:00:08.6]} 32. Bxc6 {[%clk 0:00:05]}
32... Nxc6 {[%clk 0:00:09.5]} 33. b5 {[%clk 0:00:04.5]} 33... Nb4 {[%clk
0:00:09.7]} 34. Nd7+ {[%clk 0:00:04.8]} 34... Ke7 {[%clk 0:00:08.8]} 35. Nb6
{[%clk 0:00:05.7]} 35... Rd8 {[%clk 0:00:07.5]} 36. Rc1 {[%clk 0:00:06]} 36...
Kf6 {[%clk 0:00:06.2]} 37. Rc7 {[%clk 0:00:06.1]} 37... Rd2 {[%clk 0:00:05.1]}
38. Rxb7 {[%clk 0:00:04.6]} 38... Nd3 {[%clk 0:00:05.4]} 39. g3 {[%clk
0:00:03.7]} 39... Ne1 {[%clk 0:00:05]} 40. f4 {[%clk 0:00:03.2]} 40... Nf3+
{[%clk 0:00:04.7]} 41. Kf1 {[%clk 0:00:03.8]} 41... g5 {[%clk 0:00:04.1]} 42.
fxg5+ {[%clk 0:00:03.4]} 42... hxg5 {[%clk 0:00:04.7]} 43. a5 {[%clk 0:00:02.8]}
43... Nxh2+ {[%clk 0:00:04.6]} 44. Ke1 {[%clk 0:00:02.9]} 44... Nf3+ {[%clk
0:00:05.5]} 45. Kf1 {[%clk 0:00:03.5]} 45... Nh2+ {[%clk 0:00:03.4]} 46. Ke1
{[%clk 0:00:03.4]} 46... Nf3+ {[%clk 0:00:03.8]} 47. Kf1 {[%clk 0:00:04.1]}
47... Kf5 {[%clk 0:00:04.3]} 48. a6 {[%clk 0:00:03.7]} 48... Kg4 {[%clk
0:00:04.7]} 49. Nc4 {[%clk 0:00:03.9]} 49... Nh2+ {[%clk 0:00:03.8]} 50. Ke1
{[%clk 0:00:04.4]} 50... Nf3+ {[%clk 0:00:04.7]} 51. Kf1 {[%clk 0:00:05]} 51...
Nh2+ {[%clk 0:00:05.2]} 52. Ke1 {[%clk 0:00:05.5]} 52... Nf3+ {[%clk 0:00:05.6]}
53. Kf1 {[%clk 0:00:06.2]} 1/2-1/2

[Event "Early-Titled-Tuesday-Blitz-September-12-2023"]
[Site "Chess.com"]
[Date "2023.09.12"]
[Round "5"]
[White "tteshan"]
[Black "AsselLesbekova"]
[Result "1-0"]
[WhiteElo "2563"]
[BlackElo "2333"]
[TimeControl "180+1"]
[EndTime "8:55:59 PDT"]
[Termination "tteshan won on time"]

1. e4 {[%clk 0:03:00.9]} 1... e5 {[%clk 0:02:48]} 2. Nf3 {[%clk 0:03:00.7]} 2...
Nf6 {[%clk 0:02:46.3]} 3. Nxe5 {[%clk 0:02:58.5]} 3... Nxe4 {[%clk 0:02:46.2]}
4. Qe2 {[%clk 0:02:57.3]} 4... Qe7 {[%clk 0:02:45.7]} 5. Nf3 {[%clk 0:02:48.2]}
5... d5 {[%clk 0:02:34.3]} 6. d3 {[%clk 0:02:47.4]} 6... Nf6 {[%clk 0:02:31.6]}
7. Nc3 {[%clk 0:02:45.2]} 7... c6 {[%clk 0:02:24.4]} 8. Bg5 {[%clk 0:02:44.9]}
8... Qxe2+ {[%clk 0:01:59.6]} 9. Bxe2 {[%clk 0:02:45.8]} 9... Be7 {[%clk
0:01:59.9]} 10. O-O-O {[%clk 0:02:43.7]} 10... h6 {[%clk 0:01:58.7]} 11. Bh4
{[%clk 0:02:41.7]} 11... g5 {[%clk 0:01:51.7]} 12. Bg3 {[%clk 0:02:41.8]} 12...
Bg4 {[%clk 0:01:50.3]} 13. h3 {[%clk 0:02:37.4]} 13... Bh5 {[%clk 0:01:49.5]}
14. Rde1 {[%clk 0:02:32.7]} 14... O-O {[%clk 0:01:34.6]} 15. Nxg5 {[%clk
0:02:15.5]} 15... Bxe2 {[%clk 0:01:08.5]} 16. Rxe2 {[%clk 0:02:13.8]} 16... hxg5
{[%clk 0:00:58.6]} 17. Rxe7 {[%clk 0:02:13]} 17... Nbd7 {[%clk 0:00:58.1]} 18.
Rhe1 {[%clk 0:02:06]} 18... Rfe8 {[%clk 0:00:57.5]} 19. Rxe8+ {[%clk 0:02:04.4]}
19... Rxe8 {[%clk 0:00:58.4]} 20. Rxe8+ {[%clk 0:02:04.3]} 20... Nxe8 {[%clk
0:00:59.3]} 21. Kd2 {[%clk 0:02:03.8]} 21... Kg7 {[%clk 0:00:51]} 22. f4 {[%clk
0:02:01.5]} 22... f6 {[%clk 0:00:48.5]} 23. fxg5 {[%clk 0:02:00.7]} 23... fxg5
{[%clk 0:00:49.4]} 24. Ne2 {[%clk 0:01:56]} 24... Nef6 {[%clk 0:00:47.6]} 25.
Ke3 {[%clk 0:01:54.3]} 25... Nh5 {[%clk 0:00:45.9]} 26. Bd6 {[%clk 0:01:50.2]}
26... Kf6 {[%clk 0:00:44.5]} 27. g4 {[%clk 0:01:43.6]} 27... Ng7 {[%clk
0:00:40.9]} 28. Ng3 {[%clk 0:01:41.3]} 28... Ke6 {[%clk 0:00:39.1]} 29. Bb4
{[%clk 0:01:28.5]} 29... c5 {[%clk 0:00:34.6]} 30. Bd2 {[%clk 0:01:27.3]} 30...
Kf6 {[%clk 0:00:23.2]} 31. c4 {[%clk 0:01:20.9]} 31... d4+ {[%clk 0:00:19.3]}
32. Ke4 {[%clk 0:01:16.7]} 32... Ke6 {[%clk 0:00:18.7]} 33. Bxg5 {[%clk
0:01:14.4]} 33... b5 {[%clk 0:00:17.6]} 34. b3 {[%clk 0:01:10.3]} 34... bxc4
{[%clk 0:00:17.1]} 35. bxc4 {[%clk 0:01:11.2]} 35... Ne5 {[%clk 0:00:16.4]} 36.
Nf5 {[%clk 0:01:04.8]} 36... Ne8 {[%clk 0:00:14.9]} 37. Be7 {[%clk 0:00:30.1]}
37... Nd7 {[%clk 0:00:09.6]} 38. h4 {[%clk 0:00:24.5]} 38... Ne5 {[%clk
0:00:09.6]} 39. Bxc5 {[%clk 0:00:17.5]} 39... Nxg4 {[%clk 0:00:09.9]} 40. Nxd4+
{[%clk 0:00:16.9]} 40... Kd7 {[%clk 0:00:09]} 41. Nf5 {[%clk 0:00:16.1]} 41...
Ngf6+ {[%clk 0:00:05.4]} 42. Kd4 {[%clk 0:00:16.4]} 42... Ke6 {[%clk 0:00:05.3]}
43. Ne3 {[%clk 0:00:15.7]} 43... a6 {[%clk 0:00:05.9]} 44. a4 {[%clk 0:00:14.6]}
44... Ng7 {[%clk 0:00:06.2]} 45. Ba3 {[%clk 0:00:13.5]} 45... Nfh5 {[%clk
0:00:06]} 46. c5 {[%clk 0:00:13.4]} 46... Ne8 {[%clk 0:00:05.9]} 47. c6 {[%clk
0:00:12.9]} 47... Nc7 {[%clk 0:00:06.1]} 48. Kc5 {[%clk 0:00:13.2]} 48... Ke7
{[%clk 0:00:04.7]} 49. Nd5+ {[%clk 0:00:12.9]} 49... Nxd5 {[%clk 0:00:03.7]} 50.
Kxd5+ {[%clk 0:00:13.8]} 50... Kd8 {[%clk 0:00:03.4]} 51. Kd6 {[%clk 0:00:13.8]}
51... Nf4 {[%clk 0:00:03.6]} 52. d4 {[%clk 0:00:13.4]} 52... Kc8 {[%clk
0:00:03.7]} 53. d5 {[%clk 0:00:13.5]} 53... Ng6 {[%clk 0:00:03.5]} 54. Kc5
{[%clk 0:00:13.4]} 54... Nxh4 {[%clk 0:00:03.5]} 55. d6 {[%clk 0:00:13.8]} 55...
Nf5 {[%clk 0:00:03.4]} 56. Kb6 {[%clk 0:00:14.4]} 56... a5 {[%clk 0:00:01.5]}
57. d7+ {[%clk 0:00:14.1]} 57... Kd8 {[%clk 0:00:01.9]} 58. Kb7 {[%clk 0:00:13]}
1-0

[Event "Early-Titled-Tuesday-Blitz-September-12-2023"]
[Site "Chess.com"]
[Date "2023.09.12"]
[Round "5"]
[White "Iunusovnuriddin"]
[Black "Sadykov_Ramil"]
[Result "1-0"]
[WhiteElo "2342"]
[BlackElo "2549"]
[TimeControl "180+1"]
[EndTime "8:55:59 PDT"]
[Termination "Iunusovnuriddin won on time"]

1. e4 {[%clk 0:02:53.7]} 1... c6 {[%clk 0:02:57.9]} 2. Nc3 {[%clk 0:02:53.5]}
2... d5 {[%clk 0:02:56.8]} 3. Nf3 {[%clk 0:02:54.1]} 3... dxe4 {[%clk
0:02:56.1]} 4. Nxe4 {[%clk 0:02:55]} 4... Bg4 {[%clk 0:02:56.5]} 5. Bc4 {[%clk
0:02:47.1]} 5... e6 {[%clk 0:02:48.8]} 6. h3 {[%clk 0:02:29.9]} 6... Bxf3 {[%clk
0:02:44.2]} 7. Qxf3 {[%clk 0:02:30.8]} 7... Nd7 {[%clk 0:02:43.4]} 8. d4 {[%clk
0:02:24.8]} 8... Ngf6 {[%clk 0:02:43.1]} 9. c3 {[%clk 0:02:24.5]} 9... Nxe4
{[%clk 0:02:41.1]} 10. Qxe4 {[%clk 0:02:25.4]} 10... Nf6 {[%clk 0:02:42]} 11.
Qc2 {[%clk 0:02:22.2]} 11... Be7 {[%clk 0:02:41.9]} 12. O-O {[%clk 0:02:20.5]}
12... O-O {[%clk 0:02:41.7]} 13. Bd3 {[%clk 0:02:11.9]} 13... g6 {[%clk
0:02:37.3]} 14. a3 {[%clk 0:02:10.3]} 14... Nd5 {[%clk 0:02:25.5]} 15. c4 {[%clk
0:02:08.2]} 15... Nb6 {[%clk 0:02:10.4]} 16. Be3 {[%clk 0:02:07.2]} 16... Bf6
{[%clk 0:02:07.5]} 17. Rad1 {[%clk 0:02:05.9]} 17... Qe7 {[%clk 0:01:59.9]} 18.
Rfe1 {[%clk 0:01:56.9]} 18... Rfd8 {[%clk 0:01:59.1]} 19. Bf1 {[%clk 0:01:42]}
19... Qf8 {[%clk 0:01:56.7]} 20. g4 {[%clk 0:01:38.8]} 20... Rd7 {[%clk
0:01:51.6]} 21. Rd3 {[%clk 0:01:06.3]} 21... Rad8 {[%clk 0:01:50.7]} 22. Red1
{[%clk 0:01:05.5]} 22... Qg7 {[%clk 0:01:49.7]} 23. d5 {[%clk 0:00:47.6]} 23...
exd5 {[%clk 0:01:34.3]} 24. Bxb6 {[%clk 0:00:47.7]} 24... axb6 {[%clk
0:01:33.8]} 25. cxd5 {[%clk 0:00:48.6]} 25... cxd5 {[%clk 0:01:25.8]} 26. Qb3
{[%clk 0:00:48.4]} 26... Bxb2 {[%clk 0:01:12]} 27. Bg2 {[%clk 0:00:37.5]} 27...
Be5 {[%clk 0:00:41.1]} 28. Bxd5 {[%clk 0:00:37.3]} 28... Rd6 {[%clk 0:00:36.4]}
29. g5 {[%clk 0:00:18.1]} 29... h6 {[%clk 0:00:30.6]} 30. h4 {[%clk 0:00:16.1]}
30... hxg5 {[%clk 0:00:27.2]} 31. hxg5 {[%clk 0:00:17]} 31... Bf4 {[%clk
0:00:25.7]} 32. Rf3 {[%clk 0:00:16.7]} 32... Qe5 {[%clk 0:00:25.4]} 33. Bxf7+
{[%clk 0:00:16.1]} 33... Kg7 {[%clk 0:00:25.9]} 34. Rxd6 {[%clk 0:00:16.5]}
34... Rxd6 {[%clk 0:00:26.8]} 35. Bc4 {[%clk 0:00:12.6]} 35... Qxg5+ {[%clk
0:00:23.5]} 36. Kf1 {[%clk 0:00:12.5]} 36... Qe5 {[%clk 0:00:13.9]} 37. Be2
{[%clk 0:00:09.4]} 37... g5 {[%clk 0:00:09.3]} 38. Qc4 {[%clk 0:00:09.4]} 38...
Re6 {[%clk 0:00:08.7]} 39. Qd3 {[%clk 0:00:05.7]} 39... Kf6 {[%clk 0:00:08.6]}
40. Rh3 {[%clk 0:00:05.6]} 40... Qe4 {[%clk 0:00:05.1]} 41. Qc3+ {[%clk
0:00:04.6]} 41... Be5 {[%clk 0:00:04.6]} 42. Rh6+ {[%clk 0:00:05.1]} 42... Ke7
{[%clk 0:00:02.8]} 43. Rxe6+ {[%clk 0:00:02.9]} 43... Kxe6 {[%clk 0:00:03.7]}
44. Qb3+ {[%clk 0:00:02.6]} 44... Kf5 {[%clk 0:00:03.5]} 45. Bd3 {[%clk
0:00:02]} 45... Kf4 {[%clk 0:00:01.5]} 46. Bxe4 {[%clk 0:00:02.4]} 46... Kxe4
{[%clk 0:00:02.4]} 47. Qxb6 {[%clk 0:00:03.1]} 47... Bf4 {[%clk 0:00:02]} 48.
Qxb7+ {[%clk 0:00:04]} 48... Ke5 {[%clk 0:00:01.7]} 49. Kg2 {[%clk 0:00:04.9]}
49... Kf5 {[%clk 0:00:02.4]} 50. f3 {[%clk 0:00:05.7]} 50... g4 {[%clk
0:00:02.8]} 51. Qc8+ {[%clk 0:00:06.6]} 51... Ke5 {[%clk 0:00:01.7]} 52. Qxg4
{[%clk 0:00:07.5]} 1-0

[Event "Early-Titled-Tuesday-Blitz-September-12-2023"]
[Site "Chess.com"]
[Date "2023.09.12"]
[Round "5"]
[White "arminmusovic"]
[Black "stollenmonster"]
[Result "1-0"]
[WhiteElo "2572"]
[BlackElo "2817"]
[TimeControl "180+1"]
[EndTime "8:56:02 PDT"]
[Termination "arminmusovic won by resignation"]

1. a3 {[%clk 0:02:57.4]} 1... e5 {[%clk 0:02:58.9]} 2. d4 {[%clk 0:02:57.3]}
2... exd4 {[%clk 0:02:58.7]} 3. Qxd4 {[%clk 0:02:58.2]} 3... Nc6 {[%clk
0:02:59]} 4. Qa4 {[%clk 0:02:58.9]} 4... Nf6 {[%clk 0:02:58.9]} 5. Nc3 {[%clk
0:02:58.7]} 5... d5 {[%clk 0:02:57]} 6. Bg5 {[%clk 0:02:58.9]} 6... Be7 {[%clk
0:02:56.6]} 7. O-O-O {[%clk 0:02:59.1]} 7... Be6 {[%clk 0:02:54.2]} 8. Nf3
{[%clk 0:02:57.4]} 8... O-O {[%clk 0:02:47.5]} 9. e4 {[%clk 0:02:54.9]} 9... d4
{[%clk 0:02:47.3]} 10. Nxd4 {[%clk 0:02:51]} 10... Nxd4 {[%clk 0:02:44.8]} 11.
Rxd4 {[%clk 0:02:51.9]} 11... Nd7 {[%clk 0:02:37.1]} 12. Bxe7 {[%clk 0:02:47.1]}
12... Qxe7 {[%clk 0:02:38]} 13. f4 {[%clk 0:02:29.8]} 13... Nb6 {[%clk
0:02:33.3]} 14. Qb5 {[%clk 0:02:26.6]} 14... Rfd8 {[%clk 0:02:25.7]} 15. Rxd8+
{[%clk 0:02:20.8]} 15... Rxd8 {[%clk 0:02:26.6]} 16. Bd3 {[%clk 0:02:15.4]}
16... a6 {[%clk 0:02:18.5]} 17. Qh5 {[%clk 0:02:13.2]} 17... Qd6 {[%clk
0:02:09.1]} 18. e5 {[%clk 0:02:06.4]} 18... Qd4 {[%clk 0:02:00.7]} 19. Qxh7+
{[%clk 0:02:01.4]} 19... Kf8 {[%clk 0:02:00.8]} 20. Qh8+ {[%clk 0:01:52.5]}
20... Ke7 {[%clk 0:02:01.4]} 21. Qh4+ {[%clk 0:01:53.4]} 21... Kd7 {[%clk
0:01:59.9]} 22. Rd1 {[%clk 0:01:50.3]} 22... Kc8 {[%clk 0:01:47.9]} 23. Qg3
{[%clk 0:01:42.6]} 23... Qc5 {[%clk 0:01:35.4]} 24. Re1 {[%clk 0:01:12.2]} 24...
g6 {[%clk 0:01:24.7]} 25. Qe3 {[%clk 0:01:12]} 25... Qa5 {[%clk 0:01:20]} 26. h3
{[%clk 0:01:09.1]} 26... Kb8 {[%clk 0:01:15.2]} 27. g4 {[%clk 0:01:08.9]} 27...
Bc4 {[%clk 0:01:15.7]} 28. Be4 {[%clk 0:01:06.5]} 28... Be6 {[%clk 0:01:07.4]}
29. Rd1 {[%clk 0:01:02.5]} 29... Rh8 {[%clk 0:01:03.7]} 30. Bg2 {[%clk
0:01:01.5]} 30... Nc4 {[%clk 0:01:02.4]} 31. Qd4 {[%clk 0:00:54.3]} 31... c5
{[%clk 0:00:45.6]} 32. Qe4 {[%clk 0:00:47.2]} 32... Qb6 {[%clk 0:00:44.8]} 33.
Na4 {[%clk 0:00:46.1]} 33... Qb5 {[%clk 0:00:44.7]} 34. b3 {[%clk 0:00:45.5]}
34... Na5 {[%clk 0:00:38.8]} 35. Bf1 {[%clk 0:00:39.5]} 35... c4 {[%clk
0:00:31.2]} 36. Nc3 {[%clk 0:00:34]} 36... Qb6 {[%clk 0:00:27.6]} 37. b4 {[%clk
0:00:33.8]} 37... Nc6 {[%clk 0:00:28.1]} 38. Bg2 {[%clk 0:00:30.4]} 38... Qf2
{[%clk 0:00:24.7]} 39. Qf3 {[%clk 0:00:28.7]} 39... Qb6 {[%clk 0:00:22.8]} 40.
Rd6 {[%clk 0:00:28.9]} 40... Bc8 {[%clk 0:00:18.6]} 41. Na4 {[%clk 0:00:26.2]}
41... Qg1+ {[%clk 0:00:14.3]} 42. Rd1 {[%clk 0:00:26.5]} 42... Qh2 {[%clk
0:00:09.1]} 43. Nc5 {[%clk 0:00:25.8]} 43... g5 {[%clk 0:00:09.4]} 44. Nxa6+
{[%clk 0:00:25.5]} 44... Ka7 {[%clk 0:00:09.8]} 45. b5 {[%clk 0:00:25.2]} 45...
Qxf4+ {[%clk 0:00:08.1]} 46. Qxf4 {[%clk 0:00:24.3]} 46... gxf4 {[%clk 0:00:09]}
47. bxc6 {[%clk 0:00:23.6]} 47... Kxa6 {[%clk 0:00:09.5]} 48. cxb7 {[%clk
0:00:22.6]} 48... Bxb7 {[%clk 0:00:10.4]} 49. Bxb7+ {[%clk 0:00:22.7]} 49...
Kxb7 {[%clk 0:00:10.6]} 50. Rd7+ {[%clk 0:00:23.4]} 50... Kc6 {[%clk 0:00:10.8]}
51. Rxf7 {[%clk 0:00:24.3]} 51... Rxh3 {[%clk 0:00:10.3]} 52. Rxf4 {[%clk
0:00:25]} 52... Kd5 {[%clk 0:00:10.6]} 53. Kb2 {[%clk 0:00:20.6]} 53... Re3
{[%clk 0:00:10.9]} 54. a4 {[%clk 0:00:18.7]} 54... Re1 {[%clk 0:00:04.6]} 55.
Kc3 {[%clk 0:00:17.2]} 55... Ra1 {[%clk 0:00:04.5]} 56. Rxc4 {[%clk 0:00:16]}
56... Ra3+ {[%clk 0:00:05.1]} 57. Kb2 {[%clk 0:00:16.6]} 57... Re3 {[%clk
0:00:05.4]} 58. Rb4 {[%clk 0:00:16.8]} 58... Kc5 {[%clk 0:00:05.5]} 59. Rb5+
{[%clk 0:00:16.6]} 59... Kc4 {[%clk 0:00:06.3]} 60. Rb3 {[%clk 0:00:16]} 60...
Rxe5 {[%clk 0:00:06.2]} 61. Rg3 {[%clk 0:00:15.5]} 61... Rg5 {[%clk 0:00:06.5]}
62. Ka3 {[%clk 0:00:15.6]} 62... Kd4 {[%clk 0:00:05.8]} 63. Kb4 {[%clk
0:00:14.8]} 63... Ke4 {[%clk 0:00:06.5]} 64. a5 {[%clk 0:00:14.9]} 64... Kf4
{[%clk 0:00:07.4]} 65. Rg1 {[%clk 0:00:14.5]} 65... Rg8 {[%clk 0:00:08.3]} 66.
c4 {[%clk 0:00:14.8]} 66... Rb8+ {[%clk 0:00:09.2]} 67. Kc3 {[%clk 0:00:15.3]}
67... Ke4 {[%clk 0:00:09.6]} 68. g5 {[%clk 0:00:15.5]} 1-0